[Event "Titled Tuesday Blitz October 31 Late 2023"]
[White "Bullen, Alex"]
[Black "Novikova, Galina"]
[WhiteFideId "1801627"]
[BlackFideId "4157095"]
[WhiteElo "2231"]
[BlackElo "2398"]
[Result "0-1"]
[Round "3"]
[TimeControl "180+1"]
[Date "2023.10.31"]
[WhiteClock "0:00:11"]
[BlackClock "0:00:05"]
[Board "150"]

1. d4 {[%clk 0:03:00]}  Nf6 {[%clk 0:02:58]} 2. Nf3 {[%clk 0:03:00]}  g6 {[%clk 0:02:58]} 3. Nbd2 {[%clk 0:03:00]}  Bg7 {[%clk 0:02:59]} 4. e4 {[%clk 0:03:01]}  d6 {[%clk 0:02:59]} 5. Bd3 {[%clk 0:03:01]}  O-O {[%clk 0:02:54]} 6. O-O {[%clk 0:03:02]}  c5 {[%clk 0:02:52]} 7. c3 {[%clk 0:03:01]}  Nc6 {[%clk 0:02:50]} 8. Re1 {[%clk 0:03:02]}  Nh5 {[%clk 0:02:48]} 9. Nb3 {[%clk 0:02:52]}  b6 {[%clk 0:02:43]} 10. Be3 {[%clk 0:02:49]}  Kh8 {[%clk 0:02:24]} 11. a4 {[%clk 0:02:42]}  e5 {[%clk 0:02:21]} 12. dxe5 {[%clk 0:02:37]}  dxe5 {[%clk 0:02:19]} 13. Bc4 {[%clk 0:02:33]}  Qe7 {[%clk 0:02:15]} 14. a5 {[%clk 0:02:30]}  Bg4 {[%clk 0:02:12]} 15. h3 {[%clk 0:02:26]}  Rad8 {[%clk 0:02:10]} 16. Qe2 {[%clk 0:02:24]}  Bc8 {[%clk 0:02:01]} 17. axb6 {[%clk 0:02:23]}  axb6 {[%clk 0:02:02]} 18. Red1 {[%clk 0:02:17]}  h6 {[%clk 0:01:58]} 19. Bd5 {[%clk 0:02:17]}  Bd7 {[%clk 0:01:53]} 20. Ra6 {[%clk 0:02:14]}  Rb8 {[%clk 0:01:47]} 21. Nfd2 {[%clk 0:02:06]}  Nf4 {[%clk 0:01:39]} 22. Bxf4 {[%clk 0:02:00]}  exf4 {[%clk 0:01:40]} 23. Nc4 {[%clk 0:02:01]}  Ne5 {[%clk 0:01:14]} 24. f3 {[%clk 0:01:46]}  Nxc4 {[%clk 0:01:05]} 25. Qxc4 {[%clk 0:01:45]}  Qg5 {[%clk 0:01:03]} 26. Kh1 {[%clk 0:01:29]}  Qg3 {[%clk 0:01:00]} 27. Qd3 {[%clk 0:01:12]}  Rfd8 {[%clk 0:00:46]} 28. Bxf7 {[%clk 0:01:04]}  Bf6 {[%clk 0:00:20]} 29. Qf1 {[%clk 0:00:57]}  Kg7 {[%clk 0:00:13]} 30. Bc4 {[%clk 0:00:53]}  g5 {[%clk 0:00:09]} 31. Ra7 {[%clk 0:00:52]}  Kg6 {[%clk 0:00:06]} 32. Rdxd7 {[%clk 0:00:46]}  Rxd7 {[%clk 0:00:07]} 33. Rxd7 {[%clk 0:00:47]}  h5 {[%clk 0:00:07]} 34. Bf7+ {[%clk 0:00:45]}  Kh6 {[%clk 0:00:07]} 35. Nd2 {[%clk 0:00:36]}  g4 {[%clk 0:00:07]} 36. e5 {[%clk 0:00:33]}  Bxe5 {[%clk 0:00:05]} 37. Ne4 {[%clk 0:00:32]}  Qh4 {[%clk 0:00:04]} 38. fxg4 {[%clk 0:00:24]}  hxg4 {[%clk 0:00:05]} 39. Nf2 {[%clk 0:00:20]}  gxh3 {[%clk 0:00:04]} 40. Nxh3 {[%clk 0:00:20]}  Ra8 {[%clk 0:00:04]} 41. Qf3 {[%clk 0:00:18]}  Ra1+ {[%clk 0:00:03]} 42. Kh2 {[%clk 0:00:17]}  Qg3+ {[%clk 0:00:04]} 43. Qxg3 {[%clk 0:00:11]}  fxg3# {[%clk 0:00:05]} 0-1


[Site "https://www.chess.com"]

[Event "Titled Tuesday Blitz October 31 Late 2023"]
[White "Souza, Gustavo Horokoski De"]
[Black "Padalka, Artem"]
[WhiteFideId "2146584"]
[BlackFideId "14118637"]
[WhiteElo "2170"]
[BlackElo "2342"]
[Result "1-0"]
[Round "3"]
[TimeControl "180+1"]
[Date "2023.10.31"]
[WhiteClock "0:00:07"]
[BlackClock "0:00:28"]
[Board "160"]

1. c4 {[%clk 0:02:55]}  c5 {[%clk 0:02:59]} 2. Nc3 {[%clk 0:02:55]}  g6 {[%clk 0:02:59]} 3. g3 {[%clk 0:02:55]}  Bg7 {[%clk 0:03:00]} 4. Bg2 {[%clk 0:02:56]}  Nf6 {[%clk 0:03:00]} 5. Nf3 {[%clk 0:02:56]}  O-O {[%clk 0:03:00]} 6. O-O {[%clk 0:02:57]}  Nc6 {[%clk 0:03:01]} 7. d3 {[%clk 0:02:57]}  d6 {[%clk 0:03:02]} 8. a3 {[%clk 0:02:54]}  a6 {[%clk 0:03:02]} 9. Rb1 {[%clk 0:02:54]}  Rb8 {[%clk 0:03:02]} 10. b4 {[%clk 0:02:54]}  cxb4 {[%clk 0:03:03]} 11. axb4 {[%clk 0:02:54]}  b5 {[%clk 0:03:04]} 12. cxb5 {[%clk 0:02:52]}  axb5 {[%clk 0:03:05]} 13. Qb3 {[%clk 0:02:48]}  Bg4 {[%clk 0:03:01]} 14. Be3 {[%clk 0:02:40]}  d5 {[%clk 0:02:58]} 15. Nd4 {[%clk 0:02:38]}  Nxd4 {[%clk 0:02:54]} 16. Bxd4 {[%clk 0:02:39]}  e6 {[%clk 0:02:54]} 17. h3 {[%clk 0:02:34]}  Bh5 {[%clk 0:02:44]} 18. g4 {[%clk 0:02:32]}  Bxg4 {[%clk 0:02:40]} 19. hxg4 {[%clk 0:02:33]}  Nxg4 {[%clk 0:02:40]} 20. Bxg7 {[%clk 0:02:31]}  Qh4 {[%clk 0:02:40]} 21. Be5 {[%clk 0:02:07]}  Nxe5 {[%clk 0:02:39]} 22. f3 {[%clk 0:01:48]}  Qd4+ {[%clk 0:02:22]} 23. Kh1 {[%clk 0:01:43]}  Qh4+ {[%clk 0:02:15]} 24. Kg1 {[%clk 0:01:43]}  Qd4+ {[%clk 0:02:16]} 25. Kh1 {[%clk 0:01:25]}  h5 {[%clk 0:02:01]} 26. Nd1 {[%clk 0:01:22]}  h4 {[%clk 0:01:56]} 27. Nf2 {[%clk 0:01:22]}  Rbc8 {[%clk 0:01:50]} 28. Qb2 {[%clk 0:01:18]}  Qe3 {[%clk 0:01:44]} 29. Ng4 {[%clk 0:01:02]}  Nxg4 {[%clk 0:01:43]} 30. fxg4 {[%clk 0:01:02]}  h3 {[%clk 0:01:42]} 31. Bf3 {[%clk 0:01:01]}  Rc7 {[%clk 0:01:38]} 32. Rbc1 {[%clk 0:00:57]}  Rfc8 {[%clk 0:01:36]} 33. Rxc7 {[%clk 0:00:57]}  Rxc7 {[%clk 0:01:37]} 34. Qf6 {[%clk 0:00:54]}  Rc2 {[%clk 0:01:31]} 35. Qh4 {[%clk 0:00:43]}  Rb2 {[%clk 0:01:29]} 36. Qxh3 {[%clk 0:00:37]}  Rxe2 {[%clk 0:01:26]} 37. Qh4 {[%clk 0:00:28]}  Rb2 {[%clk 0:01:20]} 38. Bg2 {[%clk 0:00:23]}  Qd4 {[%clk 0:00:58]} 39. Qd8+ {[%clk 0:00:18]}  Kg7 {[%clk 0:00:58]} 40. Qd6 {[%clk 0:00:12]}  Rxb4 {[%clk 0:00:31]} 41. Qe7 {[%clk 0:00:10]}  Qxg4 {[%clk 0:00:28]} 42. Rxf7+ {[%clk 0:00:07]}  Kh6 {[%clk 0:00:28]} 43. Rh7# {[%clk 0:00:07]} 1-0


[Site "https://www.chess.com"]

[Event "Titled Tuesday Blitz October 31 Late 2023"]
[White "Minina, Veronika"]
[Black "Fernandez Hernandez, Gerardo"]
[WhiteFideId "4174780"]
[BlackFideId "2207400"]
[WhiteElo "2338"]
[BlackElo "2162"]
[Result "1-0"]
[Round "3"]
[TimeControl "180+1"]
[Date "2023.10.31"]
[WhiteClock "0:00:36"]
[BlackClock "0:00:00"]
[Board "161"]

1. Nf3 {[%clk 0:03:00]}  Nf6 {[%clk 0:02:59]} 2. g3 {[%clk 0:03:01]}  g6 {[%clk 0:02:59]} 3. Bg2 {[%clk 0:03:01]}  Bg7 {[%clk 0:03:00]} 4. O-O {[%clk 0:03:02]}  O-O {[%clk 0:03:00]} 5. c4 {[%clk 0:03:03]}  d6 {[%clk 0:03:00]} 6. Nc3 {[%clk 0:03:03]}  e5 {[%clk 0:03:00]} 7. d3 {[%clk 0:03:04]}  Nc6 {[%clk 0:03:00]} 8. Rb1 {[%clk 0:03:04]}  a5 {[%clk 0:02:59]} 9. a3 {[%clk 0:03:03]}  h6 {[%clk 0:02:57]} 10. b4 {[%clk 0:02:57]}  axb4 {[%clk 0:02:58]} 11. axb4 {[%clk 0:02:57]}  Be6 {[%clk 0:02:57]} 12. c5 {[%clk 0:02:47]}  Nh5 {[%clk 0:02:37]} 13. b5 {[%clk 0:02:43]}  Ne7 {[%clk 0:02:37]} 14. b6 {[%clk 0:02:28]}  dxc5 {[%clk 0:02:10]} 15. bxc7 {[%clk 0:02:27]}  Qxc7 {[%clk 0:02:11]} 16. Be3 {[%clk 0:02:23]}  Nf5 {[%clk 0:01:34]} 17. Bd2 {[%clk 0:02:22]}  Ne7 {[%clk 0:01:14]} 18. Qc1 {[%clk 0:02:21]}  f5 {[%clk 0:00:50]} 19. Bxh6 {[%clk 0:02:18]}  e4 {[%clk 0:00:49]} 20. dxe4 {[%clk 0:02:03]}  f4 {[%clk 0:00:46]} 21. Bxg7 {[%clk 0:01:54]}  Kxg7 {[%clk 0:00:40]} 22. Nb5 {[%clk 0:01:38]}  Qc8 {[%clk 0:00:24]} 23. Nd6 {[%clk 0:01:33]}  Qc6 {[%clk 0:00:22]} 24. Nxb7 {[%clk 0:01:27]}  Rac8 {[%clk 0:00:12]} 25. Ne5 {[%clk 0:01:24]}  Qc7 {[%clk 0:00:09]} 26. Qb2 {[%clk 0:01:18]}  Kg8 {[%clk 0:00:07]} 27. Rfc1 {[%clk 0:01:16]}  fxg3 {[%clk 0:00:07]} 28. hxg3 {[%clk 0:01:14]}  c4 {[%clk 0:00:07]} 29. Qc3 {[%clk 0:00:56]}  Rb8 {[%clk 0:00:04]} 30. Na5 {[%clk 0:00:52]}  Rxb1 {[%clk 0:00:04]} 31. Rxb1 {[%clk 0:00:53]}  Qc5 {[%clk 0:00:03]} 32. Naxc4 {[%clk 0:00:51]}  Qxf2+ {[%clk 0:00:03]} 33. Kh1 {[%clk 0:00:49]}  Nxg3+ {[%clk 0:00:03]} 34. Kh2 {[%clk 0:00:43]}  Nxe4 {[%clk 0:00:02]} 35. Qe3 {[%clk 0:00:37]}  Qh4+ {[%clk 0:00:00]} 36. Kg1 {[%clk 0:00:36]} 1-0


[Site "https://www.chess.com"]

[Event "Titled Tuesday Blitz October 31 Late 2023"]
[White "Benaddi, Mouhcine"]
[Black "Rose, Felix"]
[WhiteFideId "9001050"]
[BlackFideId "5105722"]
[WhiteElo "2147"]
[BlackElo "2332"]
[Result "0-1"]
[Round "3"]
[TimeControl "180+1"]
[Date "2023.10.31"]
[WhiteClock "0:00:32"]
[BlackClock "0:00:19"]
[Board "162"]

1. Nf3 {[%clk 0:02:59]}  Nf6 {[%clk 0:02:58]} 2. g3 {[%clk 0:02:54]}  g6 {[%clk 0:02:56]} 3. Bg2 {[%clk 0:02:52]}  Bg7 {[%clk 0:02:57]} 4. O-O {[%clk 0:02:53]}  O-O {[%clk 0:02:57]} 5. d4 {[%clk 0:02:53]}  d5 {[%clk 0:02:58]} 6. c4 {[%clk 0:02:54]}  c6 {[%clk 0:02:56]} 7. cxd5 {[%clk 0:02:52]}  cxd5 {[%clk 0:02:55]} 8. Nc3 {[%clk 0:02:50]}  Nc6 {[%clk 0:02:53]} 9. Ne5 {[%clk 0:02:50]}  Bf5 {[%clk 0:02:51]} 10. Nxc6 {[%clk 0:02:48]}  bxc6 {[%clk 0:02:52]} 11. Bf4 {[%clk 0:02:49]}  Rc8 {[%clk 0:02:37]} 12. Rc1 {[%clk 0:02:45]}  c5 {[%clk 0:01:56]} 13. Be5 {[%clk 0:02:41]}  cxd4 {[%clk 0:01:54]} 14. Qxd4 {[%clk 0:02:38]}  Rc4 {[%clk 0:01:26]} 15. Qxa7 {[%clk 0:02:31]}  e6 {[%clk 0:01:21]} 16. Rfd1 {[%clk 0:02:25]}  Qc8 {[%clk 0:01:15]} 17. b3 {[%clk 0:02:20]}  Rc6 {[%clk 0:01:13]} 18. e3 {[%clk 0:02:10]}  Ne4 {[%clk 0:01:12]} 19. Bxg7 {[%clk 0:02:07]}  Nxc3 {[%clk 0:01:05]} 20. Bxf8 {[%clk 0:01:51]}  Ne2+ {[%clk 0:01:04]} 21. Kf1 {[%clk 0:01:48]}  Rxc1 {[%clk 0:01:02]} 22. Kxe2 {[%clk 0:01:48]}  Qc2+ {[%clk 0:00:51]} 23. Rd2 {[%clk 0:01:43]}  Bd3+ {[%clk 0:00:50]} 24. Kf3 {[%clk 0:01:42]}  Qxd2 {[%clk 0:00:51]} 25. Qb8 {[%clk 0:01:36]}  Qe2+ {[%clk 0:00:41]} 26. Kf4 {[%clk 0:01:36]}  Qxf2+ {[%clk 0:00:39]} 27. Bf3 {[%clk 0:01:36]}  g5+ {[%clk 0:00:34]} 28. Kxg5 {[%clk 0:00:57]}  Qxe3+ {[%clk 0:00:34]} 29. Kh4 {[%clk 0:00:54]}  Qd4+ {[%clk 0:00:22]} 30. Bg4 {[%clk 0:00:32]}  Qf6+ {[%clk 0:00:19]} 0-1


[Site "https://www.chess.com"]

[Event "Titled Tuesday Blitz October 31 Late 2023"]
[White "miraitrunks"]
[Black "Senft, Sean"]
[BlackFideId "2044960"]
[WhiteElo "2083"]
[BlackElo "2331"]
[Result "0-1"]
[Round "3"]
[TimeControl "180+1"]
[Date "2023.10.31"]
[WhiteClock "0:01:32"]
[BlackClock "0:02:02"]
[Board "163"]

1. e4 {[%clk 0:02:58]}  c5 {[%clk 0:03:00]} 2. c3 {[%clk 0:02:58]}  d5 {[%clk 0:03:00]} 3. exd5 {[%clk 0:02:59]}  Qxd5 {[%clk 0:03:01]} 4. d4 {[%clk 0:03:00]}  Nf6 {[%clk 0:03:02]} 5. Nf3 {[%clk 0:03:00]}  Nc6 {[%clk 0:03:03]} 6. Na3 {[%clk 0:02:59]}  Bg4 {[%clk 0:03:03]} 7. Be2 {[%clk 0:02:59]}  e6 {[%clk 0:03:03]} 8. Be3 {[%clk 0:02:57]}  cxd4 {[%clk 0:03:03]} 9. Nb5 {[%clk 0:02:57]}  Qd8 {[%clk 0:03:02]} 10. Nbxd4 {[%clk 0:02:56]}  Nxd4 {[%clk 0:03:02]} 11. Nxd4 {[%clk 0:02:56]}  Bxe2 {[%clk 0:03:02]} 12. Qxe2 {[%clk 0:02:57]}  Be7 {[%clk 0:03:03]} 13. O-O {[%clk 0:02:54]}  O-O {[%clk 0:03:03]} 14. Rad1 {[%clk 0:02:53]}  Qa5 {[%clk 0:03:01]} 15. a3 {[%clk 0:02:50]}  Rfd8 {[%clk 0:02:59]} 16. Qf3 {[%clk 0:02:49]}  Nd5 {[%clk 0:02:58]} 17. Rfe1 {[%clk 0:02:47]}  Nxe3 {[%clk 0:02:58]} 18. Rxe3 {[%clk 0:02:47]}  Qb6 {[%clk 0:02:58]} 19. Qe2 {[%clk 0:02:44]}  Bf6 {[%clk 0:02:57]} 20. Red3 {[%clk 0:02:43]}  Rd5 {[%clk 0:02:56]} 21. Nf3 {[%clk 0:02:21]}  Rxd3 {[%clk 0:02:54]} 22. Rxd3 {[%clk 0:02:21]}  Rd8 {[%clk 0:02:52]} 23. h3 {[%clk 0:02:16]}  Rxd3 {[%clk 0:02:49]} 24. Qxd3 {[%clk 0:02:16]}  Qxb2 {[%clk 0:02:49]} 25. Qd7 {[%clk 0:02:12]}  g6 {[%clk 0:02:43]} 26. h4 {[%clk 0:02:04]}  Qxc3 {[%clk 0:02:33]} 27. Qxb7 {[%clk 0:02:02]}  Qxa3 {[%clk 0:02:31]} 28. h5 {[%clk 0:02:02]}  Kg7 {[%clk 0:02:16]} 29. h6+ {[%clk 0:01:56]}  Kg8 {[%clk 0:02:16]} 30. Qb8+ {[%clk 0:01:54]}  Qf8 {[%clk 0:02:17]} 31. Qxa7 {[%clk 0:01:52]}  Qxh6 {[%clk 0:02:17]} 32. Qb8+ {[%clk 0:01:52]}  Kg7 {[%clk 0:02:17]} 33. Qc7 {[%clk 0:01:51]}  Qh5 {[%clk 0:02:07]} 34. Qf4 {[%clk 0:01:38]}  Qa5 {[%clk 0:02:03]} 35. Nd4 {[%clk 0:01:34]}  Qa1+ {[%clk 0:02:02]} 36. Kh2 {[%clk 0:01:32]}  Qxd4 {[%clk 0:02:02]} 0-1


[Site "https://www.chess.com"]

[Event "Titled Tuesday Blitz October 31 Late 2023"]
[White "Balla, Tamas-Kristof"]
[Black "Oliveira, Tiago Batista"]
[WhiteFideId "1208497"]
[BlackFideId "2108291"]
[WhiteElo "2330"]
[BlackElo "2047"]
[Result "1-0"]
[Round "3"]
[TimeControl "180+1"]
[Date "2023.10.31"]
[WhiteClock "0:00:16"]
[BlackClock "0:00:01"]
[Board "164"]

1. e4 {[%clk 0:03:00]}  e5 {[%clk 0:02:53]} 2. Nf3 {[%clk 0:03:00]}  Nc6 {[%clk 0:02:53]} 3. d4 {[%clk 0:03:00]}  exd4 {[%clk 0:02:52]} 4. Nxd4 {[%clk 0:03:01]}  Nf6 {[%clk 0:02:52]} 5. Nxc6 {[%clk 0:02:55]}  bxc6 {[%clk 0:02:50]} 6. e5 {[%clk 0:02:55]}  Qe7 {[%clk 0:02:50]} 7. Qe2 {[%clk 0:02:55]}  Nd5 {[%clk 0:02:50]} 8. h4 {[%clk 0:02:53]}  a5 {[%clk 0:02:40]} 9. c4 {[%clk 0:02:48]}  Ba6 {[%clk 0:02:39]} 10. b3 {[%clk 0:02:27]}  Rb8 {[%clk 0:02:21]} 11. g3 {[%clk 0:02:18]}  g6 {[%clk 0:01:52]} 12. Bb2 {[%clk 0:02:11]}  Bg7 {[%clk 0:01:47]} 13. Bg2 {[%clk 0:02:11]}  Qb4+ {[%clk 0:01:47]} 14. Nd2 {[%clk 0:02:11]}  O-O {[%clk 0:01:28]} 15. O-O {[%clk 0:02:09]}  Rfe8 {[%clk 0:01:13]} 16. Rfe1 {[%clk 0:01:40]}  d6 {[%clk 0:01:04]} 17. Qd1 {[%clk 0:01:29]}  Ne7 {[%clk 0:00:36]} 18. Qc2 {[%clk 0:01:23]}  d5 {[%clk 0:00:31]} 19. e6 {[%clk 0:01:14]}  f6 {[%clk 0:00:25]} 20. cxd5 {[%clk 0:01:07]}  cxd5 {[%clk 0:00:25]} 21. Nf3 {[%clk 0:01:04]}  c5 {[%clk 0:00:23]} 22. Rad1 {[%clk 0:00:59]}  Rbd8 {[%clk 0:00:22]} 23. Nh2 {[%clk 0:00:56]}  d4 {[%clk 0:00:18]} 24. Bc1 {[%clk 0:00:50]}  Nd5 {[%clk 0:00:18]} 25. Ng4 {[%clk 0:00:45]}  Nc3 {[%clk 0:00:17]} 26. Rd2 {[%clk 0:00:39]}  d3 {[%clk 0:00:17]} 27. Qb2 {[%clk 0:00:33]}  f5 {[%clk 0:00:17]} 28. Ne5 {[%clk 0:00:27]}  Rd5 {[%clk 0:00:17]} 29. Bxd5 {[%clk 0:00:23]}  Nxd5 {[%clk 0:00:15]} 30. Nxd3 {[%clk 0:00:20]}  Bxb2 {[%clk 0:00:13]} 31. Nxb4 {[%clk 0:00:20]}  Bxc1 {[%clk 0:00:12]} 32. Rxd5 {[%clk 0:00:17]}  cxb4 {[%clk 0:00:08]} 33. Rxc1 {[%clk 0:00:16]}  Rxe6 {[%clk 0:00:08]} 34. Rd8+ {[%clk 0:00:16]}  Kg7 {[%clk 0:00:08]} 35. Rcd1 {[%clk 0:00:17]}  Kh6 {[%clk 0:00:09]} 36. R8d6 {[%clk 0:00:17]}  Rxd6 {[%clk 0:00:08]} 37. Rxd6 {[%clk 0:00:18]}  Be2 {[%clk 0:00:08]} 38. Rd5 {[%clk 0:00:18]}  a4 {[%clk 0:00:07]} 39. bxa4 {[%clk 0:00:18]}  Bc4 {[%clk 0:00:07]} 40. Rb5 {[%clk 0:00:17]}  Bxa2 {[%clk 0:00:07]} 41. Rxb4 {[%clk 0:00:17]}  Bd5 {[%clk 0:00:06]} 42. a5 {[%clk 0:00:17]}  Be4 {[%clk 0:00:05]} 43. a6 {[%clk 0:00:17]}  Ba8 {[%clk 0:00:01]} 44. Rb8 {[%clk 0:00:16]} 1-0


[Site "https://www.chess.com"]

[Event "Titled Tuesday Blitz October 31 Late 2023"]
[White "Freile Martin, Javier"]
[Black "leonidsh29"]
[WhiteFideId "3600165"]
[WhiteElo "2323"]
[BlackElo "2035"]
[Result "1-0"]
[Round "3"]
[TimeControl "180+1"]
[Date "2023.10.31"]
[WhiteClock "0:00:32"]
[BlackClock "0:00:00"]
[Board "165"]

1. c4 {[%clk 0:03:00]}  Nf6 {[%clk 0:02:58]} 2. Nc3 {[%clk 0:02:59]}  g6 {[%clk 0:02:56]} 3. d4 {[%clk 0:02:59]}  c5 {[%clk 0:02:51]} 4. d5 {[%clk 0:02:55]}  e5 {[%clk 0:02:49]} 5. e4 {[%clk 0:02:45]}  d6 {[%clk 0:02:46]} 6. Be2 {[%clk 0:02:45]}  Bg7 {[%clk 0:02:45]} 7. g4 {[%clk 0:02:44]}  h5 {[%clk 0:02:38]} 8. g5 {[%clk 0:02:43]}  Nh7 {[%clk 0:02:34]} 9. h4 {[%clk 0:02:43]}  O-O {[%clk 0:02:34]} 10. Nh3 {[%clk 0:02:25]}  a6 {[%clk 0:02:31]} 11. f3 {[%clk 0:02:17]}  Nd7 {[%clk 0:02:29]} 12. Nf2 {[%clk 0:02:17]}  Rb8 {[%clk 0:02:18]} 13. Rg1 {[%clk 0:02:14]}  Qe7 {[%clk 0:02:01]} 14. Bd2 {[%clk 0:02:12]}  Kh8 {[%clk 0:01:48]} 15. a3 {[%clk 0:02:07]}  b5 {[%clk 0:01:37]} 16. cxb5 {[%clk 0:02:05]}  axb5 {[%clk 0:01:36]} 17. Bxb5 {[%clk 0:02:05]}  f6 {[%clk 0:01:32]} 18. Qe2 {[%clk 0:01:49]}  fxg5 {[%clk 0:01:27]} 19. hxg5 {[%clk 0:01:47]}  Rf4 {[%clk 0:01:21]} 20. Bxf4 {[%clk 0:01:23]}  exf4 {[%clk 0:01:20]} 21. a4 {[%clk 0:01:22]}  Ne5 {[%clk 0:01:18]} 22. Nd3 {[%clk 0:01:21]}  Nxg5 {[%clk 0:01:09]} 23. Nxf4 {[%clk 0:01:18]}  Nexf3+ {[%clk 0:01:05]} 24. Kf1 {[%clk 0:01:12]}  Nxg1 {[%clk 0:01:04]} 25. Nxg6+ {[%clk 0:01:11]}  Kh7 {[%clk 0:01:03]} 26. Nxe7 {[%clk 0:01:10]}  Nxe2 {[%clk 0:01:02]} 27. Kxe2 {[%clk 0:00:51]}  Bg4+ {[%clk 0:00:58]} 28. Kd2 {[%clk 0:00:45]}  Bxc3+ {[%clk 0:00:49]} 29. Kxc3 {[%clk 0:00:43]}  Nxe4+ {[%clk 0:00:48]} 30. Kc2 {[%clk 0:00:40]}  h4 {[%clk 0:00:46]} 31. Bd3 {[%clk 0:00:39]}  Bf3 {[%clk 0:00:44]} 32. Rf1 {[%clk 0:00:37]}  Re8 {[%clk 0:00:39]} 33. Rxf3 {[%clk 0:00:36]}  Rxe7 {[%clk 0:00:38]} 34. Rf4 {[%clk 0:00:35]}  Rf7 {[%clk 0:00:30]} 35. Rxf7+ {[%clk 0:00:33]}  Kg6 {[%clk 0:00:29]} 36. Bxe4+ {[%clk 0:00:32]}  Kg5 {[%clk 0:00:28]} 37. a5 {[%clk 0:00:31]}  Kh5 {[%clk 0:00:26]} 38. a6 {[%clk 0:00:31]}  Kg5 {[%clk 0:00:26]} 39. a7 {[%clk 0:00:32]}  Kh5 {[%clk 0:00:26]} 40. a8=Q {[%clk 0:00:32]}  Kg5 {[%clk 0:00:00]} 41. Qg8+ {[%clk 0:00:32]} 1-0


[Site "https://www.chess.com"]

[Event "Titled Tuesday Blitz October 31 Late 2023"]
[White "Kobo, Ori"]
[Black "Pranav, V"]
[WhiteFideId "2812320"]
[BlackFideId "25060783"]
[WhiteElo "2815"]
[BlackElo "3049"]
[Result "0-1"]
[Round "4"]
[TimeControl "180+1"]
[Date "2023.10.31"]
[WhiteClock "0:00:08"]
[BlackClock "0:01:27"]
[Board "4"]

1. d4 {[%clk 0:03:00]}  Nf6 {[%clk 0:02:59]} 2. Nf3 {[%clk 0:03:01]}  b6 {[%clk 0:02:59]} 3. e3 {[%clk 0:03:01]}  Bb7 {[%clk 0:03:00]} 4. Bd3 {[%clk 0:03:02]}  g6 {[%clk 0:03:01]} 5. c4 {[%clk 0:03:01]}  Bg7 {[%clk 0:03:01]} 6. Nc3 {[%clk 0:03:02]}  O-O {[%clk 0:03:02]} 7. e4 {[%clk 0:03:01]}  d6 {[%clk 0:03:02]} 8. O-O {[%clk 0:02:59]}  Nbd7 {[%clk 0:03:02]} 9. h3 {[%clk 0:02:49]}  e5 {[%clk 0:03:02]} 10. d5 {[%clk 0:02:50]}  a5 {[%clk 0:03:01]} 11. b3 {[%clk 0:02:48]}  Nh5 {[%clk 0:03:01]} 12. g3 {[%clk 0:02:45]}  Bc8 {[%clk 0:03:00]} 13. Bc2 {[%clk 0:02:41]}  Nc5 {[%clk 0:03:00]} 14. Kg2 {[%clk 0:02:36]}  f5 {[%clk 0:02:52]} 15. Be3 {[%clk 0:02:20]}  Nf6 {[%clk 0:02:39]} 16. exf5 {[%clk 0:02:13]}  gxf5 {[%clk 0:02:37]} 17. Nh4 {[%clk 0:02:07]}  e4 {[%clk 0:02:31]} 18. Ne2 {[%clk 0:02:00]}  Nfd7 {[%clk 0:02:26]} 19. Nd4 {[%clk 0:01:49]}  Ne5 {[%clk 0:02:25]} 20. Qh5 {[%clk 0:01:41]}  Ned3 {[%clk 0:02:11]} 21. Nhxf5 {[%clk 0:01:26]}  Bxf5 {[%clk 0:02:08]} 22. Nxf5 {[%clk 0:01:27]}  Bxa1 {[%clk 0:02:08]} 23. Rxa1 {[%clk 0:01:26]}  Qf6 {[%clk 0:02:06]} 24. Qg4+ {[%clk 0:01:19]}  Kh8 {[%clk 0:02:04]} 25. Nd4 {[%clk 0:00:42]}  Nxf2 {[%clk 0:01:41]} 26. Qe2 {[%clk 0:00:42]}  Nfd3 {[%clk 0:01:41]} 27. Rg1 {[%clk 0:00:30]}  Rf7 {[%clk 0:01:38]} 28. Nc6 {[%clk 0:00:29]}  Qf3+ {[%clk 0:01:36]} 29. Qxf3 {[%clk 0:00:28]}  exf3+ {[%clk 0:01:37]} 30. Kh2 {[%clk 0:00:29]}  Re8 {[%clk 0:01:37]} 31. Bd4+ {[%clk 0:00:26]}  Kg8 {[%clk 0:01:37]} 32. Bd1 {[%clk 0:00:20]}  Re2+ {[%clk 0:01:30]} 33. Bxe2 {[%clk 0:00:15]}  fxe2 {[%clk 0:01:31]} 34. Bc3 {[%clk 0:00:16]}  Ne4 {[%clk 0:01:30]} 35. Be1 {[%clk 0:00:11]}  Rf1 {[%clk 0:01:31]} 36. Ne7+ {[%clk 0:00:08]}  Kf7 {[%clk 0:01:27]} 37. Ng8 {[%clk 0:00:08]} 0-1


[Site "https://www.chess.com"]

[Event "Titled Tuesday Blitz October 31 Late 2023"]
[White "Bortnyk, Mykola"]
[Black "Horton, Andrew P"]
[WhiteFideId "14120836"]
[BlackFideId "424269"]
[WhiteElo "3008"]
[BlackElo "2768"]
[Result "1-0"]
[Round "4"]
[TimeControl "180+1"]
[Date "2023.10.31"]
[WhiteClock "0:00:37"]
[BlackClock "0:00:00"]
[Board "5"]

1. e4 {[%clk 0:03:00]}  e5 {[%clk 0:02:58]} 2. Nf3 {[%clk 0:03:01]}  Nc6 {[%clk 0:02:58]} 3. Bb5 {[%clk 0:03:01]}  d6 {[%clk 0:02:54]} 4. d4 {[%clk 0:02:58]}  exd4 {[%clk 0:02:54]} 5. Nxd4 {[%clk 0:02:55]}  Bd7 {[%clk 0:02:55]} 6. Bxc6 {[%clk 0:02:55]}  bxc6 {[%clk 0:02:54]} 7. Nc3 {[%clk 0:02:55]}  g6 {[%clk 0:02:51]} 8. O-O {[%clk 0:02:55]}  Bg7 {[%clk 0:02:51]} 9. Re1 {[%clk 0:02:50]}  Ne7 {[%clk 0:02:48]} 10. Bg5 {[%clk 0:02:46]}  h6 {[%clk 0:02:47]} 11. Bh4 {[%clk 0:02:44]}  O-O {[%clk 0:02:43]} 12. f4 {[%clk 0:02:43]}  g5 {[%clk 0:02:39]} 13. fxg5 {[%clk 0:02:27]}  Ng6 {[%clk 0:02:38]} 14. gxh6 {[%clk 0:02:27]}  Qxh4 {[%clk 0:02:31]} 15. hxg7 {[%clk 0:02:26]}  Kxg7 {[%clk 0:02:31]} 16. Nf5+ {[%clk 0:02:21]}  Bxf5 {[%clk 0:02:28]} 17. exf5 {[%clk 0:02:22]}  Ne5 {[%clk 0:02:27]} 18. Re4 {[%clk 0:02:11]}  Qh6 {[%clk 0:02:04]} 19. Qd4 {[%clk 0:01:57]}  Rh8 {[%clk 0:02:00]} 20. f6+ {[%clk 0:01:54]}  Qxf6 {[%clk 0:01:45]} 21. Rf1 {[%clk 0:01:52]}  Qh6 {[%clk 0:01:39]} 22. h3 {[%clk 0:01:47]}  Rag8 {[%clk 0:01:36]} 23. Qxa7 {[%clk 0:01:34]}  Qd2 {[%clk 0:00:25]} 24. Re2 {[%clk 0:01:23]}  Qg5 {[%clk 0:00:23]} 25. Ne4 {[%clk 0:01:19]}  Qg6 {[%clk 0:00:19]} 26. Rf6 {[%clk 0:01:06]}  Qh5 {[%clk 0:00:15]} 27. Qf2 {[%clk 0:00:51]}  Rh6 {[%clk 0:00:13]} 28. Ng3 {[%clk 0:00:49]}  Qg5 {[%clk 0:00:07]} 29. Nf5+ {[%clk 0:00:40]}  Kxf6 {[%clk 0:00:04]} 30. Nxh6+ {[%clk 0:00:41]}  Ke7 {[%clk 0:00:02]} 31. Nxg8+ {[%clk 0:00:41]}  Qxg8 {[%clk 0:00:03]} 32. a4 {[%clk 0:00:40]}  c5 {[%clk 0:00:03]} 33. Rxe5+ {[%clk 0:00:39]}  dxe5 {[%clk 0:00:03]} 34. Qxc5+ {[%clk 0:00:39]}  Ke6 {[%clk 0:00:04]} 35. Qc4+ {[%clk 0:00:37]}  Kf6 {[%clk 0:00:00]} 36. Qh4+ {[%clk 0:00:37]} 1-0


[Site "https://www.chess.com"]